bitfinex/quotes_SOLUSD_20260203
["timestamp","ask_amount","ask_price","bid_price","bid_amount"]
[1770138505914,10.76316604,100.64,100.6,9.94034092]
[1770138506515,6.59173117,100.62,100.59,14.33282347]
[1770138507017,10.76316604,100.63,100.59,45.77791978]
[1770138507196,10.76316604,100.63,100.59,39.18618861]
[1770138507796,6.59173117,100.64,100.59,45.77791978]
[1770138507992,14.10686305,100.65,100.61,4.39168002]
[1770138507993,10.76316604,100.65,100.61,4.39168002]
[1770138508248,6.59173117,100.63,100.59,39.18618861]
[1770138508517,6.59173117,100.63,100.59,45.77791978]
[1770138508813,10.76316604,100.62,100.58,14.33349931]
[1770138508998,6.59173117,100.62,100.59,9.9411655]
[1770138509194,10.76316604,100.63,100.59,9.9411655]
[1770138509606,6.59173117,100.64,100.59,45.77794183]
[1770138509801,20.69943288,100.65,100.61,4.39168002]
[1770138510012,4.17143487,100.61,100.57,9.9427683]
[1770138510218,6.59173117,100.59,100.57,9.9427683]
[1770138510395,14.11090089,100.61,100.57,14.33444832]
[1770138510597,6.59173117,100.6,100.57,14.33444832]
[1770138510799,6.59173117,100.63,100.6,4.39168002]
[1770138511000,10.76316604,100.64,100.6,4.39168002]
[1770138511615,4.17143487,100.66,100.61,4.39168002]
[1770138511821,16.13559441,100.68,100.63,10.98341119]
[1770138512018,5.37242837,100.68,100.65,6.59173117]
[1770138512234,0.2,100.68,100.65,6.59173117]
[1770138512434,0.2,100.68,100.65,9.93447954]
[1770138512640,4.37143487,100.68,100.65,9.93447954]
[1770138512798,10.96316604,100.68,100.65,9.93526466]
[1770138513003,4.37143487,100.68,100.64,35.82373887]
[1770138513311,10.96316604,100.68,100.64,10.98341119]
[1770138513509,20.89563027,100.68,100.64,14.3275633]
[1770138513707,10.76316604,100.67,100.63,9.93700104]
[1770138513906,6.79173117,100.68,100.64,9.93614047]
[1770138514103,0.2,100.68,100.65,9.93526716]
[1770138514618,0.2,100.68,100.66,10.98341119]
[1770138514822,0.2,100.68,100.65,20.91867835]
[1770138515120,6.79173117,100.68,100.65,14.32694718]
[1770138515316,6.79173117,100.68,100.65,9.93526716]
[1770138515705,6.79173117,100.68,100.64,4.39168002]
[1770138515706,20.89587304,100.68,100.64,4.39168002]
[1770138515908,4.37143487,100.68,100.64,20.91939789]
[1770138516128,10.96316604,100.68,100.64,20.91939789]
[1770138516315,10.96316604,100.68,100.64,14.32753388]
[1770138517025,10.96316604,100.68,100.64,20.91926505]
[1770138517026,4.37143487,100.68,100.64,20.91926505]
[1770138517329,10.96316604,100.68,100.64,39.16855136]
[1770138517708,10.96316604,100.68,100.64,45.76028253]
[1770138518010,4.37143487,100.68,100.64,45.76028253]
[1770138518417,10.96316604,100.68,100.64,45.76028253]
[1770138518926,10.96316604,100.68,100.64,39.16855136]
[1770138519116,0.2,100.68,100.64,45.76028253]
[1770138519314,0.2,100.68,100.65,4.39168002]
[1770138519523,0.2,100.68,100.65,10.98341119]
[1770138519722,10.76316604,100.67,100.64,9.93585386]
[1770138519917,6.59173117,100.67,100.64,9.93585386]
[1770138520433,10.76316604,100.66,100.62,29.23641446]
[1770138520609,6.59173117,100.64,100.6,14.33144029]
[1770138520810,6.59173117,100.64,100.61,14.33042671]
[1770138521408,6.59173117,100.66,100.62,4.39168002]
[1770138522230,6.59173117,100.65,100.62,4.39168002]
[1770138522442,6.59173117,100.65,100.61,14.33042671]
[1770138522926,10.76316604,100.64,100.6,14.33153233]
[1770138523129,6.59173117,100.62,100.58,4.39168002]
[1770138523430,20.70087516,100.63,100.59,4.39168002]
[1770138523633,20.70087516,100.63,100.59,14.33285407]
[1770138523818,10.76316604,100.63,100.59,14.33285407]
[1770138524019,20.70066078,100.63,100.59,14.33285407]
[1770138524210,72.64767517,100.67,100.59,14.33285407]
[1770138524211,6.59173117,100.64,100.6,4.39168002]
[1770138524407,20.69962799,100.64,100.6,4.39168002]
[1770138524618,10.76316604,100.64,100.6,4.39168002]
[1770138524844,16.52761097,100.65,100.61,4.39168002]
[1770138525237,16.52761097,100.65,100.61,14.33028241]
[1770138525639,20.69904584,100.65,100.61,14.33028241]
[1770138525944,32.91221181,100.67,100.62,4.39168002]
[1770138525945,9.34148511,100.67,100.62,4.39168002]
[1770138526126,6.59173117,100.65,100.62,4.39168002]
[1770138526319,10.76316604,100.65,100.61,14.33028241]
[1770138527326,6.59173117,100.64,100.61,14.33028241]
[1770138527745,10.76316604,100.64,100.61,9.93860239]
[1770138528952,6.59173117,100.62,100.6,9.93985766]
[1770138529272,6.59173117,100.61,100.58,14.33328015]
[1770138529422,10.76316604,100.61,100.57,9.94280894]
[1770138529625,6.59173117,100.6,100.57,9.94280894]
[1770138529840,6.59173117,100.6,100.57,14.33448896]
[1770138530048,6.59173117,100.62,100.59,9.94126811]
[1770138530231,10.76316604,100.63,100.59,14.33294813]
[1770138530766,6.59173117,100.62,100.59,9.94126811]
[1770138531050,6.59173117,100.6,100.57,14.0844942]
[1770138531927,4.32568173,100.61,100.57,14.0844942]
[1770138532122,4.32568173,100.61,100.57,4.14171614]
[1770138532343,6.59173117,100.61,100.58,14.08359866]
[1770138532552,10.9174129,100.61,100.58,9.94188252]
[1770138533049,20.85679817,100.61,100.57,14.08503919]
[1770138533547,10.9174129,100.61,100.57,14.08503919]
[1770138533726,10.95641834,100.63,100.58,6.59173117]
[1770138533928,20.89401658,100.63,100.59,4.3147166]
[1770138534230,20.89401658,100.63,100.58,6.59173117]
[1770138534231,10.95641834,100.62,100.57,41.39336186]
[1770138534431,10.95641834,100.62,100.58,4.3147166]
[1770138534634,6.59173117,100.6,100.57,9.94332305]
[1770138535035,6.59173117,100.59,100.56,41.85857059]
[1770138535452,10.95641834,100.6,100.56,41.85857059]
[1770138535750,20.896829,100.6,100.56,41.85857059]
[1770138535944,20.896829,100.6,100.56,14.25857059]
[1770138537046,10.95641834,100.6,100.56,14.25857059]
[1770138537355,10.95641834,100.61,100.57,4.3147166]
[1770138537543,4.36468717,100.63,100.59,4.3147166]
[1770138537732,10.95641834,100.65,100.6,10.90644777]
[1770138538134,10.95641834,100.65,100.61,4.3147166]
[1770138538449,6.59173117,100.65,100.62,4.3147166]
[1770138538647,6.59173117,100.65,100.61,4.3147166]
[1770138539033,10.95641834,100.66,100.62,9.93838203]
[1770138539235,20.89087284,100.66,100.62,9.93838203]
[1770138539450,10.95641834,100.66,100.62,14.25309863]
[1770138539749,10.95641834,100.66,100.62,45.69078487]
[1770138540055,10.95641834,100.67,100.63,4.3147166]
[1770138540238,6.79173117,100.68,100.64,4.3147166]
[1770138540436,6.79173117,100.68,100.63,6.59173117]
[1770138540437,0.2,100.68,100.66,4.3147166]
[1770138540754,4.36468717,100.69,100.65,6.59173117]
[1770138541057,4.36468717,100.69,100.64,4.3147166]
[1770138541058,10.95641834,100.68,100.64,20.84223725]
[1770138541239,10.95641834,100.67,100.63,14.25174006]
[1770138541439,10.95641834,100.66,100.62,37.5577435]
[1770138541638,10.95641834,100.66,100.62,14.2524601]
[1770138541839,10.95641834,100.65,100.61,20.84504456]
[1770138542154,10.95641834,100.65,100.61,14.25331339]
[1770138542340,6.59173117,100.66,100.63,9.93688879]
[1770138542543,10.95641834,100.67,100.63,14.25160539]
[1770138542756,10.95641834,100.67,100.64,9.93599145]
[1770138542957,147.30696538,100.77,100.64,9.93599145]
[1770138542958,4.36468717,100.68,100.64,20.84243922]
[1770138543165,20.88898889,100.68,100.64,14.25070805]
[1770138543366,10.95641834,100.66,100.62,4.3147166]
[1770138543558,10.95641834,100.66,100.62,14.25238423]
[1770138543559,6.59173117,100.65,100.62,14.25238423]
[1770138543757,6.59173117,100.67,100.64,9.93585185]
[1770138544056,10.95641834,100.66,100.61,35.75297697]
[1770138544255,10.95641834,100.66,100.62,14.25235287]
[1770138544758,6.59173117,100.65,100.62,14.25235287]
[1770138545169,10.95641834,100.63,100.59,24.85192239]
[1770138545366,6.59173117,100.6,100.57,9.94281276]
[1770138545546,6.59173117,100.6,100.57,9.94280059]
[1770138545864,6.59173117,100.58,100.56,9.94384731]
[1770138546268,6.59173117,100.58,100.55,9.94481927]
[1770138546564,6.59173117,100.57,100.54,9.9459338]
[1770138547344,6.59173117,100.57,100.54,14.2606504]
[1770138547768,4.36468717,100.58,100.54,45.71810665]
[1770138547962,9.94073009,100.6,100.56,4.3147166]
[1770138547963,10.95641834,100.6,100.56,4.3147166]
[1770138548166,10.95641834,100.58,100.54,14.2606504]
[1770138548469,6.5853204,100.57,100.54,14.2606504]
[1770138549653,6.5853204,100.57,100.54,14.26081879]
[1770138550167,6.5853204,100.57,100.54,9.94610219]
[1770138550566,4.36468717,100.58,100.54,14.26081879]
[1770138550869,6.5853204,100.58,100.55,4.3147166]
[1770138551873,6.5853204,100.6,100.56,4.3147166]
[1770138552183,6.5853204,100.57,100.54,14.26059311]
[1770138552482,6.5853204,100.56,100.53,14.26153402]
[1770138553367,10.95000757,100.56,100.52,9.94776595]
[1770138553755,10.95000757,100.56,100.52,14.2629856]
[1770138553964,6.5853204,100.56,100.52,39.1336581]
[1770138554570,10.95000757,100.57,100.53,4.3147166]
[1770138556374,10.95000757,100.57,100.53,14.26121756]
[1770138556772,6.5853204,100.58,100.54,4.3147166]
[1770138556978,10.95000757,100.58,100.54,4.3147166]
[1770138557157,20.89242795,100.58,100.54,4.3147166]
[1770138557852,10.95000757,100.58,100.54,4.3147166]
[1770138558056,27.62,100.61,100.57,10.900037]
[1770138558057,14.30467481,100.61,100.57,10.900037]
[1770138558260,14.30467481,100.61,100.57,14.25749922]
[1770138558261,20.88999521,100.61,100.57,14.25749922]
[1770138558770,6.5853204,100.62,100.58,4.3147166]
[1770138558966,10.95000757,100.6,100.56,14.25848225]
[1770138559484,6.5853204,100.58,100.55,9.94441032]
[1770138559787,6.5853204,100.58,100.54,10.900037]
[1770138559788,10.95000757,100.58,100.54,4.3147166]
[1770138560085,10.95000757,100.58,100.55,9.94473081]
[1770138560762,10.95000757,100.58,100.54,9.94577846]
[1770138560763,4.24267817,100.57,100.54,9.94577846]
[1770138561462,10.82799857,100.56,100.52,4.38999735]
[1770138561976,10.82799857,100.56,100.53,9.9467976]
[1770138562165,34.79821017,100.58,100.53,9.9467976]
[1770138562166,6.5853204,100.57,100.54,9.94593752]
[1770138562366,10.82799857,100.57,100.54,9.94593752]
[1770138563277,20.77143587,100.57,100.53,14.3367275]
[1770138564858,6.5853204,100.56,100.53,14.3367275]
[1770138565174,14.18611547,100.57,100.53,14.3367275]
[1770138565175,20.77143587,100.57,100.53,14.3367275]
[1770138565485,10.82799857,100.57,100.53,14.3367275]
[1770138567086,20.77153077,100.57,100.53,14.3367275]
[1770138567390,20.77153077,100.57,100.53,9.94673015]
[1770138567391,10.82799857,100.56,100.53,9.94673015]
[1770138567574,10.82799857,100.56,100.52,39.20790769]
[1770138567976,10.82799857,100.55,100.52,4.38999735]
[1770138568295,4.24267817,100.55,100.52,14.3379827]
[1770138568483,6.5853204,100.56,100.53,14.33724806]
[1770138568484,10.82799857,100.56,100.53,14.33724806]
[1770138568686,10.82799857,100.57,100.53,14.33724806]
[1770138568863,10.82799857,100.57,100.52,39.20807584]
[1770138568864,10.82799857,100.56,100.52,39.20807584]
[1770138569060,20.77266594,100.56,100.52,4.38999735]
[1770138569272,10.82799857,100.55,100.52,14.33788433]
[1770138569471,4.24267817,100.55,100.52,14.33788433]
[1770138570877,20.77178328,100.57,100.52,45.79387723]
[1770138571184,10.82799857,100.56,100.52,39.20855683]
[1770138571576,4.24267817,100.56,100.53,4.38999735]
[1770138571890,4.24267817,100.57,100.53,10.97531775]
[1770138572391,4.24267817,100.57,100.54,9.94629003]
[1770138572681,16.52809358,100.58,100.54,14.33628738]
[1770138572682,6.5853204,100.58,100.54,14.33628738]
[1770138572880,14.18567445,100.58,100.54,4.38999735]
[1770138573065,10.82799857,100.57,100.54,4.38999735]
[1770138574190,10.82799857,100.57,100.54,14.33588457]
[1770138574374,10.82799857,100.58,100.54,39.20160965]
[1770138574687,51.40930545,100.62,100.54,39.20160965]
[1770138574688,16.52118961,100.65,100.58,4.38999735]
[1770138574885,9.93586921,100.65,100.61,6.5853204]
[1770138575070,9.93490472,100.66,100.62,10.97531775]
[1770138575270,6.5853204,100.67,100.62,10.97531775]
[1770138575271,16.51926138,100.67,100.62,10.97531775]
[1770138575480,16.51926138,100.67,100.63,10.97531775]
[1770138575678,6.5853204,100.64,100.59,10.97531775]
[1770138575868,6.5853204,100.63,100.59,4.38999735]
[1770138576264,6.5853204,100.62,100.59,14.33130556]
[1770138576674,6.5853204,100.61,100.57,4.38999735]
[1770138577083,6.5853204,100.6,100.57,9.94281166]
[1770138577292,6.5853204,100.6,100.56,14.33383082]
[1770138577487,6.5853204,100.58,100.53,10.97531775]
[1770138577689,6.5853204,100.56,100.54,9.94579597]
[1770138577876,4.13430383,100.57,100.53,9.94679718]
[1770138578075,4.13430383,100.57,100.52,24.86881952]
[1770138578076,6.5853204,100.55,100.52,14.33790048]
[1770138578399,9.94387775,100.57,100.52,14.33790048]
[1770138578701,6.5853204,100.56,100.52,14.33790048]
[1770138579976,6.5853204,100.57,100.53,10.97531775]
[1770138580177,16.52826275,100.58,100.54,4.38999735]
[1770138580582,6.5853204,100.55,100.52,9.94790313]
[1770138580785,10.08458427,100.58,100.5,29.26523941]
[1770138580786,6.5853204,100.53,100.5,4.38999735]
[1770138580981,4.13430383,100.54,100.51,9.94919417]
[1770138581178,6.5853204,100.53,100.51,9.94919417]
[1770138581589,6.5853204,100.53,100.5,4.38999735]
[1770138581590,6.5853204,100.53,100.5,14.33984793]
[1770138582096,6.5853204,100.52,100.5,4.38999735]
[1770138582478,6.5853204,100.52,100.5,14.34020809]
[1770138582698,6.5853204,100.53,100.5,14.34020809]
[1770138583200,6.5853204,100.54,100.5,14.34020809]
[1770138583381,6.5853204,100.52,100.5,9.95021074]
[1770138583695,6.5853204,100.52,100.49,14.34084468]
[1770138583901,6.5853204,100.54,100.5,14.34001332]
[1770138584099,6.5853204,100.53,100.5,14.34001332]
[1770138584488,6.5853204,100.54,100.5,39.21563521]
[1770138585085,6.5853204,100.53,100.5,39.21563521]
[1770138585799,6.5853204,100.53,100.5,14.34001332]
[1770138586304,6.5853204,100.52,100.49,9.95073285]
[1770138586797,6.5853204,100.52,100.49,14.3407302]
[1770138587002,14.0814643,100.54,100.5,14.3393489]
[1770138587003,4.13430383,100.54,100.5,14.3393489]
[1770138587201,6.5853204,100.55,100.51,4.38999735]
[1770138587381,6.5853204,100.54,100.51,4.38999735]
[1770138587585,6.5853204,100.55,100.51,4.38999735]
[1770138587782,6.5853204,100.54,100.5,39.21497079]
[1770138588612,6.5853204,100.53,100.5,9.94935155]
[1770138588903,6.5853204,100.52,100.49,24.87746133]
[1770138589087,6.5853204,100.52,100.49,9.95079873]
[1770138589495,6.5853204,100.52,100.48,14.34177152]
[1770138589785,6.5853204,100.51,100.48,9.95177417]
[1770138589989,6.5853204,100.51,100.48,14.34177152]
[1770138590187,6.5853204,100.51,100.47,24.88100293]
[1770138590188,6.5853204,100.5,100.46,4.38999735]
[1770138590392,6.5853204,100.5,100.46,14.34339799]
[1770138591193,6.5853204,100.5,100.46,45.81424496]
[1770138591793,6.5853204,100.5,100.46,39.22892456]
[1770138592207,4.13430383,100.5,100.44,0.409646]
[1770138592396,34.96507855,100.51,100.44,0.409646]
[1770138592397,6.5853204,100.46,100.44,0.409646]
[1770138592708,6.5853204,100.48,100.44,14.59349336]
[1770138592912,6.5853204,100.47,100.44,14.59349336]
[1770138593113,6.5853204,100.47,100.44,14.59349296]
[1770138593291,6.5853204,100.47,100.44,4.63742137]
[1770138593488,10.71962423,100.48,100.44,14.59291862]
[1770138593999,6.5853204,100.49,100.45,4.30032958]
[1770138594401,6.5853204,100.48,100.45,4.30032958]
[1770138594792,6.5853204,100.48,100.44,10.36514325]
[1770138594993,6.5853204,100.48,100.45,9.95514654]
[1770138595391,10.71962423,100.49,100.45,14.25547612]
[1770138595597,6.5853204,100.49,100.45,14.25547612]
[1770138596305,6.5853204,100.49,100.46,4.30032958]
[1770138596508,4.13430383,100.49,100.44,0.409646]
[1770138596700,6.5853204,100.47,100.44,10.36578284]
[1770138597122,6.5853204,100.47,100.44,14.66611242]
[1770138597798,10.71962423,100.48,100.44,14.66611242]
[1770138597998,6.5853204,100.47,100.44,14.66611242]
[1770138599216,6.5853204,100.47,100.44,4.70997558]
[1770138599394,6.5853204,100.47,100.44,14.66606322]
[1770138599814,14.08723067,100.48,100.44,14.66606322]
[1770138599995,6.5853204,100.47,100.44,14.66606322]
[1770138600703,6.5853204,100.46,100.44,0.409646]
[1770138600905,6.5853204,100.48,100.44,14.66611312]
[1770138601101,14.24841954,100.52,100.45,4.30032958]
[1770138601302,6.5853204,100.51,100.47,10.88564998]
[1770138601514,6.5853204,100.53,100.49,4.30032958]
[1770138601711,4.13430383,100.56,100.52,4.30032958]
[1770138601925,4.13430383,100.56,100.52,10.88564998]
[1770138602222,20.66332687,100.57,100.52,20.83340752]
[1770138602397,10.71962423,100.53,100.48,4.30032958]
[1770138602596,74.57530251,100.57,100.48,4.30032958]
[1770138602597,6.5853204,100.51,100.48,4.30032958]
[1770138602815,6.5853204,100.49,100.46,4.30032958]
[1770138603029,6.5853204,100.48,100.46,4.30032958]
[1770138603318,6.5853204,100.47,100.44,4.70997558]
[1770138603614,6.5853204,100.48,100.45,4.30032958]
[1770138603917,6.5853204,100.5,100.46,4.30032958]
[1770138604216,10.71962423,100.49,100.45,4.30032958]
[1770138604401,6.5853204,100.47,100.44,4.70997558]
[1770138604602,6.5853204,100.48,100.45,9.95508655]
[1770138604815,6.5853204,100.48,100.44,14.6657255]
[1770138605025,6.5853204,100.48,100.45,9.95519862]
[1770138605319,6.5853204,100.46,100.44,0.409646]
[1770138606704,6.5853204,100.45,100.41,4.40032958]
[1770138607005,9.95421925,100.46,100.43,4.30032958]
[1770138607201,9.95421925,100.46,100.42,9.95762079]
[1770138607202,6.5853204,100.47,100.44,4.30032958]
[1770138607410,16.53792567,100.48,100.44,14.25630112]
[1770138607606,6.5853204,100.47,100.44,14.25630112]
[1770138607798,20.58905866,100.49,100.44,20.84162152]
[1770138608109,16.53785608,100.48,100.44,4.30032958]
[1770138608312,6.5853204,100.47,100.44,4.30032958]
[1770138608813,6.5853204,100.48,100.44,14.25637694]
[1770138609018,6.5853204,100.47,100.44,4.30032958]
[1770138609614,20.58998784,100.48,100.44,4.30032958]
[1770138609819,9.948269,100.52,100.46,4.30032958]
[1770138610022,20.58429819,100.54,100.49,10.88564998]
[1770138610213,13.99736804,100.55,100.5,4.30032958]
[1770138610402,20.58464088,100.55,100.5,10.88760242]
[1770138610922,10.63930402,100.57,100.52,10.88760242]
[1770138611500,10.63930402,100.57,100.53,4.30032958]
[1770138611720,6.58727284,100.58,100.54,4.30032958]
[1770138611910,10.63930402,100.59,100.55,4.30032958]
[1770138612114,16.52800517,100.6,100.56,4.30032958]
[1770138612306,16.52800517,100.6,100.56,14.24463764]
[1770138612697,16.52800517,100.6,100.54,24.86526214]
[1770138612698,4.05203118,100.58,100.54,4.30032958]
[1770138612901,6.58727284,100.55,100.52,4.30032958]
[1770138613517,0.04052031,100.57,100.52,14.24835453]
[1770138613723,6.58727284,100.55,100.52,14.24835453]
[1770138614233,31.69203118,100.59,100.52,14.24835453]
[1770138614410,6.58727284,100.57,100.52,20.83562737]
[1770138614823,4.05203118,100.57,100.52,39.11902703]
[1770138615133,47.55782984,100.61,100.56,6.58727284]
[1770138615134,5.92630365,100.61,100.56,6.58727284]
[1770138615314,10.63930402,100.63,100.58,6.58727284]
[1770138615519,10.63930402,100.63,100.55,0.14216157]
[1770138615520,4.05203118,100.63,100.59,6.58727284]
[1770138615706,24.84018096,100.65,100.6,6.58727284]
[1770138615707,20.57487902,100.65,100.6,6.58727284]
[1770138616126,13.98760618,100.65,100.6,4.30032958]
[1770138616319,10.63930402,100.65,100.61,9.93936984]
[1770138616519,10.63930402,100.68,100.63,10.88760242]
[1770138616820,4.05203118,100.68,100.64,6.58727284]
[1770138617157,16.51908762,100.69,100.64,10.88760242]
[1770138617372,9.93181478,100.69,100.64,10.88760242]
[1770138617527,28.87998732,100.7,100.65,10.88760242]
[1770138617528,20.57002536,100.7,100.65,10.88760242]
[1770138618048,6.58727284,100.69,100.65,4.30032958]
[1770138618360,6.58727284,100.69,100.63,14.23717239]
[1770138618361,6.58727284,100.67,100.63,14.23717239]
[1770138618655,6.58727284,100.67,100.63,4.30032958]
[1770138619155,6.58727284,100.66,100.63,4.30032958]
[1770138619331,6.58727284,100.65,100.63,4.30032958]
[1770138619937,6.58727284,100.64,100.61,4.30032958]
[1770138620172,6.58727284,100.65,100.61,14.23957947]
[1770138620666,16.52298477,100.65,100.61,14.23957947]
[1770138620847,6.58727284,100.63,100.59,4.15317238]
[1770138621060,9.93245927,100.68,100.63,4.15317238]
[1770138621357,16.51973211,100.68,100.64,4.15317238]
[1770138621546,6.58727284,100.67,100.64,4.15317238]
[1770138621951,6.58727284,100.65,100.62,4.15317238]
[1770138622157,6.58727284,100.66,100.62,4.15317238]
[1770138622462,6.58727284,100.66,100.63,4.15317238]
[1770138622670,16.52258115,100.66,100.63,4.15317238]
[1770138623051,6.58727284,100.65,100.61,4.15317238]
[1770138623248,6.58727284,100.63,100.6,4.15317238]
[1770138623452,6.58727284,100.65,100.61,4.15317238]
[1770138624056,6.58727284,100.64,100.61,4.15317238]
[1770138624682,9.93489954,100.66,100.62,4.15317238]
[1770138624987,16.52217238,100.66,100.62,4.15317238]
[1770138625294,6.58727284,100.64,100.62,4.15317238]
[1770138625977,6.58727284,100.64,100.61,4.15317238]
[1770138626185,6.58727284,100.64,100.59,16.52833649]
[1770138626186,6.58727284,100.63,100.59,14.09423603]
[1770138626569,6.58727284,100.63,100.6,4.15317238]
[1770138626792,6.58727284,100.64,100.61,4.15317238]
[1770138626992,6.58727284,100.66,100.62,10.74044522]
[1770138627163,16.52083788,100.67,100.63,4.15317238]
[1770138627765,6.58727284,100.66,100.63,4.15317238]
[1770138627965,6.58727284,100.65,100.61,4.15317238]
[1770138628578,28.88564596,100.67,100.62,4.15317238]
[1770138628859,6.58727284,100.66,100.63,4.15317238]
[1770138629058,6.58727284,100.65,100.63,4.15317238]
[1770138629487,6.58727284,100.66,100.63,4.15317238]
[1770138629684,16.51973211,100.68,100.64,4.15317238]
[1770138629880,6.58727284,100.66,100.62,4.15317238]
[1770138630487,6.58727284,100.64,100.62,4.15317238]
[1770138630865,6.58727284,100.63,100.6,4.15317238]
[1770138631394,6.58727284,100.62,100.58,4.15317238]
[1770138631885,6.58727284,100.62,100.57,14.096238]
[1770138631886,6.58727284,100.6,100.57,14.096238]
[1770138632082,6.58727284,100.6,100.57,4.15317238]
[1770138632274,6.58727284,100.6,100.57,14.09620147]
[1770138632782,16.5258272,100.62,100.58,14.09532989]
[1770138633283,16.52515567,100.63,100.59,4.15317238]
[1770138633785,6.58727284,100.62,100.59,4.15317238]
[1770138634782,6.58727284,100.6,100.57,4.15317238]
[1770138634983,6.58727284,100.58,100.56,4.15317238]
[1770138635464,4.05203118,100.6,100.56,4.15317238]
[1770138635670,34.78802047,100.61,100.56,4.15317238]
[1770138635671,6.58727284,100.59,100.56,14.09730105]
[1770138636786,6.58727284,100.59,100.56,4.15317238]
[1770138636969,16.52862392,100.59,100.56,4.15317238]
[1770138637162,6.58727284,100.59,100.56,4.15317238]
[1770138637577,9.94088584,100.6,100.57,4.15317238]
[1770138637860,6.58727284,100.59,100.56,4.15317238]
[1770138638769,16.52874895,100.59,100.56,4.15317238]
[1770138638972,24.8484246,100.61,100.56,4.15317238]
[1770138638973,24.84542833,100.63,100.58,4.15317238]
[1770138639282,20.57612131,100.64,100.59,10.74044522]
[1770138639462,6.58727284,100.61,100.58,4.15317238]
[1770138639870,10.63930402,100.62,100.58,4.15317238]
[1770138640070,6.58727284,100.62,100.58,4.15317238]
[1770138641276,6.58727284,100.61,100.58,4.15317238]
[1770138641484,6.58727284,100.61,100.58,14.09546578]
[1770138641795,6.58727284,100.6,100.57,4.15317238]
[1770138642383,6.58727284,100.59,100.57,4.15317238]
[1770138642777,6.58727284,100.58,100.54,4.15317238]
[1770138642981,6.58727284,100.57,100.54,4.15317238]
[1770138643583,9.9438125,100.57,100.54,4.15317238]
[1770138643911,16.53108534,100.57,100.54,4.15317238]
[1770138644972,16.53016543,100.58,100.54,14.09944517]
[1770138645595,6.58727284,100.57,100.54,4.15317238]
[1770138645967,16.53016543,100.58,100.54,14.09936182]
[1770138646394,16.53016543,100.58,100.54,4.15317238]
[1770138646688,6.58727284,100.57,100.54,4.15317238]
[1770138646892,20.58509296,100.55,100.51,14.10194083]
[1770138647189,16.53306178,100.55,100.52,4.15317238]
[1770138647395,6.58727284,100.54,100.51,14.10194083]
[1770138647991,16.53306178,100.55,100.52,4.15317238]
[1770138648395,6.58727284,100.54,100.52,4.15317238]
[1770138648697,6.58727284,100.55,100.52,4.15317238]
[1770138648880,13.99669976,100.56,100.52,4.15317238]
[1770138648881,6.58727284,100.56,100.53,4.15317238]
[1770138649202,6.58727284,100.57,100.53,14.10039121]
[1770138649385,6.58727284,100.56,100.53,4.15317238]
[1770138649893,6.58727284,100.56,100.53,14.10044705]
[1770138650602,6.58727284,100.56,100.53,4.15317238]
[1770138650924,16.53103659,100.57,100.53,14.10042499]
[1770138651208,6.58727284,100.56,100.53,14.10042499]
[1770138651704,16.5316975,100.56,100.53,14.10042499]
[1770138652510,6.58727284,100.56,100.53,14.10042499]
[1770138652695,9.94188411,100.59,100.55,4.44741335]
[1770138653004,6.58727284,100.61,100.57,11.03468619]
[1770138653206,6.58727284,100.61,100.54,0.14216157]
[1770138653207,10.63930402,100.6,100.56,4.44741335]
[1770138653382,20.58064789,100.6,100.56,14.39167069]
[1770138653583,6.58727284,100.59,100.55,4.22395516]
[1770138653784,6.58727284,100.59,100.56,4.22395516]
[1770138653994,16.52861671,100.6,100.56,4.22395516]
[1770138654203,4.05203118,100.61,100.57,4.22395516]
[1770138654204,16.52709529,100.61,100.57,4.22395516]
[1770138654596,16.52709529,100.61,100.57,10.811228]
[1770138654807,6.58727284,100.61,100.58,4.22395516]
[1770138655113,6.58727284,100.61,100.56,14.16821449]
[1770138655114,6.58727284,100.6,100.56,14.16821449]
[1770138655321,16.52786455,100.6,100.56,14.16821449]
[1770138655619,16.52786455,100.6,100.57,4.22395516]
[1770138656512,6.58727284,100.6,100.57,4.22395516]
[1770138656726,16.52614854,100.62,100.58,4.22395516]
[1770138657316,45.4209167,100.63,100.59,4.22395516]
[1770138657518,20.57725656,100.63,100.59,4.22395516]
[1770138657702,6.58727284,100.62,100.59,4.22395516]
[1770138658099,6.58727284,100.62,100.58,14.1655851]
[1770138659206,16.52650219,100.62,100.58,14.1655851]
[1770138659404,6.58727284,100.61,100.58,4.22395516]
[1770138660003,16.52650219,100.62,100.59,4.22395516]
[1770138660204,16.52498792,100.63,100.59,4.22395516]
[1770138660718,20.5770191,100.63,100.59,4.22395516]
[1770138660920,16.52417459,100.64,100.6,4.22395516]
[1770138661097,16.52417459,100.64,100.6,6.58727284]
[1770138661304,9.94035785,100.6,100.57,4.22395516]
[1770138661822,16.52763069,100.6,100.57,4.22395516]
[1770138662025,9.94035785,100.6,100.58,4.22395516]
[1770138662215,16.52719863,100.61,100.58,4.22395516]
[1770138662412,16.52719863,100.61,100.57,14.16716699]
[1770138662715,6.58727284,100.6,100.57,4.22395516]
[1770138662913,6.58727284,100.59,100.57,4.22395516]
[1770138663121,6.58727284,100.6,100.57,4.22395516]
[1770138663428,6.58727284,100.62,100.58,4.22395516]
[1770138663725,9.93344591,100.67,100.62,4.22395516]
[1770138663916,9.43344591,100.67,100.64,6.58727284]